Cogmind - Beta 15 @@@ ROGUE MODE // 2025.10.12 @ 16:52:35 Player: Prakos Result: Self-destructed Performance ------------- Evolutions (4) 2000 Regions Visited (10) 2000 Robots Destroyed (90) 450 Value Destroyed (3382) 3382 Prototype IDs (8) 160 Alien Tech Used (0) 0 Bonus (1299) 1299 TOTAL SCORE: 9291 Bonus ------- High Alert Combat Kills 599 Entered Garrisons 200 Entered DSFs 500 Cogmind --------- Core Integrity 768/850 Matter 190/300 Energy 24/100 System Corruption 0% Temperature Cool (4) Movement Flying (26) Location -6/Factory Parts ------- > --- POWER (2) -------- (None) > --- PROPULSION (5) --- Improved VTOL Module Improved VTOL Module Improved VTOL Module Improved VTOL Module > --- UTILITY (6) ------ Improved Heat Sink Cooling System Structural Scanner Core Analyzer > --- WEAPON (2) ------- Precision Beam Rifle Advanced Beam Rifle > --- INVENTORY (5) ---- Improved Cooling System Improved Medium Laser Thermic Laser Powered Hammer Peak State ------------ > --- POWER ------------ Light Deuterium Engine Micro Nuclear Core > --- PROPULSION ------- Improved VTOL Module Improved VTOL Module Improved VTOL Module Improved VTOL Module > --- UTILITY ---------- Improved Heat Sink Cooling System Structural Scanner Improved Sensor Array Core Analyzer Hacking Suite > --- WEAPON ----------- Precision Beam Rifle Thermic Laser > --- INVENTORY -------- Improved Cooling System Improved Medium Laser Advanced Beam Rifle Powered Hammer [Rating: 49] Favorites ----------- Power Ion Engine Engine Ion Engine Power Core Micro Nuclear Core Propulsion Light Treads Treads Light Treads Leg Aluminum Leg Flight Unit Improved VTOL Module Utility Large Storage Unit Device Heat Sink Storage Large Storage Unit Processor Launcher Guidance Computer Hackware Hacking Suite Protection Hardened Medium Armor Plating Weapon Improved Assault Rifle Energy Gun Medium Laser Energy Cannon Heavy Particle Cannon Ballistic Gun Improved Assault Rifle Ballistic Cannon Flak Cannon Launcher Rocket Launcher Build | -11 -10 -10 -9 -9 -8 -8 -8 -7 -7 -6 ------- Run | Yrd Mat Min Mat Min Mat Gar Sto Fac DSF Fac Slots Evolved 8 | . . . 2 . 2 . . 2 . 2 Power 1 | . . . . . . . . . . 1 Propulsion 3 | . . . 1 . . . . 2 . . Utility 4 | . . . 1 . 2 . . . . 1 Weapon . | . . . . . . . . . . . Parts Attached 75 | 6 3 . 11 7 11 11 17 . 1 8 Power 9 | 1 . . . 1 4 . 2 . . 1 Engine 7 | 1 . . . 1 3 . 1 . . 1 Core 2 | . . . . . 1 . 1 . . . Reactor . | . . . . . . . . . . . Propulsion 24 | 2 . . 2 2 2 5 7 . 1 3 Treads 19 | 2 . . 1 2 2 5 6 . 1 . Leg 1 | . . . 1 . . . . . . . Wheel . | . . . . . . . . . . . Hover . | . . . . . . . . . . . Flight 4 | . . . . . . . 1 . . 3 Utility 24 | 1 2 . 4 2 5 4 3 . . 3 Device 12 | . 1 . 3 . 3 1 2 . . 2 Storage 6 | 1 1 . . 2 1 1 . . . . Processor 3 | . . . 1 . 1 . . . . 1 Hackware 1 | . . . . . . . 1 . . . Protection 2 | . . . . . . 2 . . . . Artifact . | . . . . . . . . . . . Weapon 18 | 2 1 . 5 2 . 2 5 . . 1 Energy Gun 9 | 2 1 . 2 . . . 3 . . 1 Energy Cannon 2 | . . . . . . . 2 . . . Ballistic Gun 3 | . . . 2 1 . . . . . . Ballistic Cannon 1 | . . . . . . 1 . . . . Launcher 3 | . . . 1 1 . 1 . . . . Special Weapon . | . . . . . . . . . . . Impact Weapon . | . . . . . . . . . . . Slashing Weapon . | . . . . . . . . . . . Piercing Weapon . | . . . . . . . . . . . Special Melee Weapon . | . . . . . . . . . . . Unidentified Prototypes 8 | . . . 2 . 1 . 5 . . . Parts Lost 25 | . . . 1 4 1 11 2 . 2 4 Power 5 | . . . . 1 1 . 1 . . 2 Propulsion 8 | . . . . 2 . 5 1 . . . Utility 8 | . . . 1 . . 3 . . 2 2 Weapon 4 | . . . . 1 . 3 . . . . Highest Loss Streak 4 | . . . 1 4 1 3 1 . 1 4 To Critical Strikes . | . . . . . . . . . . . Average Backups 13 | 1 5 11 14 13 14 13 14 15 11 6 Power 2 | . 1 1 1 1 1 4 3 1 1 . Propulsion 2 | . 2 4 4 2 2 2 1 5 4 . Utility 5 | . 1 5 5 6 6 4 6 6 3 1 Weapon 2 | . . 1 1 3 4 2 2 3 3 3 Tool/Special . | . . . . . . . . . . . Unused Backups 30 | . . . 12 . 3 1 10 . 2 2 Power 4 | . . . . . 1 . 3 . . . Propulsion 8 | . . . 7 . . . 1 . . . Utility 12 | . . . 3 . 1 1 4 . 2 1 Weapon 5 | . . . 1 . 1 . 2 . . 1 Tool/Special 1 | . . . 1 . . . . . . . Average Slot Usage (%) 95 | . 92 100 98 99 95 95 98 84 85 82 Engine 8 | . 14 14 11 11 5 9 6 . . 3 Core 1 | . . . . . 2 . 2 7 7 6 Treads 26 | . 28 28 28 32 27 24 25 23 30 2 Device 19 | . 7 14 20 22 23 16 20 23 16 21 Storage 10 | . 14 14 11 11 9 12 9 7 7 1 Processor 4 | . . . 1 . 9 9 6 . . 4 Hackware 1 | . . . . . . . 4 7 7 4 Protection 2 | . . . . . . 4 4 . . . Energy Gun 4 | . 28 28 14 . . . 1 . . 10 Energy Cannon 3 | . . . . . . . 11 15 15 2 Ballistic Gun 5 | . . . 5 14 18 5 1 . . . Ballistic Cannon 1 | . . . . . . 4 . . . . Launcher 4 | . . . 2 6 . 8 3 . . . Peak Build Rating 49 | 6 8 8 15 15 24 28 34 31 32 49 Average Rating 21 | 4 6 8 11 13 21 25 29 31 27 42 On Entrance 17 | . 6 8 8 15 15 24 25 31 31 24 Naked Turns . | . . . . . . . . . . . Heaviest Build 49 | 14 29 29 33 34 37 49 43 39 39 37 Greatest Support 80 | 40 40 40 60 60 60 60 60 60 80 80 Greatest Overweight (x) 1 | . . . . . . 1 1 . . . Average Overweight (x) . | . . . . . . . . . . . Largest Inventory Capacity 15 | 8 15 15 15 15 15 15 15 15 15 15 Average Capacity 14 | 7 11 15 15 15 15 15 15 15 15 6 Most Carried 15 | 3 11 11 15 15 15 15 15 15 14 14 Average Carried 13 | 1 5 11 14 13 14 13 14 15 11 5 Final Capacity 15 | 8 15 15 15 15 15 15 15 15 15 5 Final Carried 15 | 3 11 11 14 14 15 14 15 15 14 4 Class Distribution -------------------- 66% | Scavenger-Mutant 30% | Mutant Dominant Class ---------------- Mutant | -10/Materials Mutant | -10/Mines Mutant | -9/Materials Scavenger-Mutant | -9/Mines Scavenger-Mutant | -8/Materials Scavenger-Mutant | -8/Garrison Scavenger-Mutant | -8/Storage Scavenger-Mutant | -7/Factory Scavenger-Mutant | -7/DSF Sprinter | -6/Factory Resources | -11 -10 -10 -9 -9 -8 -8 -8 -7 -7 -6 ----------- Run | Yrd Mat Min Mat Min Mat Gar Sto Fac DSF Fac Matter Collected 2621 | 215 75 . 525 250 283 573 690 . 10 . Remotely 1837 | . . . 245 150 283 469 690 . . . Salvage Created 3429 | . 96 . 768 56 390 621 1286 . 111 101 Parts 198 | . 7 . 43 . 35 46 57 . 7 3 Haulers Intercepted 9 | . . . 3 . 1 . 5 . . . Recyclers Shooed 8 | . . . 3 . . . 5 . . . Parts Field Recycled . | . . . . . . . . . . . Retrieved Matter . | . . . . . . . . . . . Parts Self-Destructed . | . . . . . . . . . . . Prevented . | . . . . . . . . . . . Kills | -11 -10 -10 -9 -9 -8 -8 -8 -7 -7 -6 ------- Run | Yrd Mat Min Mat Min Mat Gar Sto Fac DSF Fac Combat Hostiles Destroyed 85 | . 2 . 10 16 8 28 15 . 2 4 Guns 34 | . 2 . 9 1 8 8 2 . . 4 Cannons 19 | . . . . . . 6 11 . 2 . AOE 31 | . . . 1 15 . 14 1 . . . Classes Destroyed 14 | . 1 . 8 1 . 3 1 . . . Worker 1 | . . . 1 . . . . . . . Builder 3 | . . . 1 . . . 2 . . . Hauler 9 | . . . 3 . 1 . 5 . . . Recycler 5 | . . . 2 . . . 3 . . . Watcher 3 | . . . 2 . 1 . . . . . Swarmer 18 | . . . 3 . 3 8 . . . 4 Cutter 2 | . . . . . . 2 . . . . Grunt 19 | . 2 . 5 . 2 4 6 . . . Brawler 1 | . . . . . . . 1 . . . Duelist 1 | . . . 1 . . . . . . . Sentry 20 | . . . 1 . 3 8 8 . . . Specialist 4 | . . . . . . 2 . . 2 . Programmer 4 | . . . . . . 4 . . . . Assembled 16 | . . . . 16 . . . . . . Best Kill Streak 16 | . 2 . 6 16 6 10 13 . 2 4 Combat Bots Only 16 | . 2 . 3 16 4 10 4 . 2 4 Max Kills in Single Turn 4 | . 1 . 2 4 2 2 2 . 1 1 Gunslinging 1 | . . . . . 1 . . . . . Exploded 4 | . . . 1 4 . 2 1 . . . Melee . | . . . . . . . . . . . Uniques/NPCs Destroyed . | . . . . . . . . . . . Combat | -11 -10 -10 -9 -9 -8 -8 -8 -7 -7 -6 -------- Run | Yrd Mat Min Mat Min Mat Gar Sto Fac DSF Fac Hostile Shots Fired 401 | . 6 . 53 24 33 146 78 . 24 37 Missed 115 | . 2 . 12 5 18 39 22 . 5 12 Hits 286 | . 4 . 41 19 15 107 56 . 19 25 Melee 11 | . . . 2 6 . 3 . . . . Projectile 275 | . 4 . 39 13 15 104 56 . 19 25 AOE 1 | . . . . 1 . . . . . . Critical Strikes 17 | . . . 1 . 1 8 5 . 2 . Damage Taken 4806 | . 44 . 494 559 191 1737 876 . 519 386 Core 784 | . 12 . 52 72 60 246 125 . 135 82 Absorbed by Shields 14 | . . . . . . 14 . . . . Core Remaining (%) 73 | 100 . 95 . 69 . . 21 . 80 . Volleys Fired 290 | . 5 . 55 14 28 80 90 . 8 10 Largest 2 | . 2 . 2 2 2 2 2 . 2 2 Hottest 143 | . 90 . 95 63 46 70 143 . 143 122 Shots Fired 487 | . 10 . 95 23 56 127 140 . 16 20 Gun 250 | . 10 . 94 10 56 44 16 . . 20 Cannon 181 | . . . . . . 43 122 . 16 . Launcher 56 | . . . 1 13 . 40 2 . . . Special . | . . . . . . . . . . . Kinetic 186 | . . . 23 10 56 87 10 . . . Thermal 228 | . 5 . 59 . . . 128 . 16 20 Explosive 47 | . . . 1 13 . 33 . . . . Electromagnetic 26 | . 5 . 12 . . 7 2 . . . Robot Hit Streak 17 | . 4 . 13 3 8 13 17 . 2 8 Robot Miss Streak 13 | . 1 . 5 4 2 13 3 . 2 3 Penetration Max . | . . . . . . . . . . . Secondary Targets 6 | . . . 2 . 3 . . . . 1 Max Gunslinging Chain 1 | . . . 1 . 1 . . . . 1 Shots Hit Robots 312 | . 6 . 56 9 38 81 99 . 7 16 Core Hits 196 | . 4 . 30 29 18 76 30 . 3 6 Critical Kills 2 | . . . . . . 1 1 . . . Critical Parts Destroyed . | . . . . . . . . . . . Critical Strikes 6 | . . . 3 . . 1 1 . . 1 Burn 4 | . . . 3 . . . . . . 1 Meltdown 1 | . . . . . . . 1 . . . Destroy 1 | . . . . . . 1 . . . . Melee Attacks . | . . . . . . . . . . . Impact . | . . . . . . . . . . . Slashing . | . . . . . . . . . . . Piercing . | . . . . . . . . . . . Sneak Attacks . | . . . . . . . . . . . Combat Hostiles . | . . . . . . . . . . . Follow-up Attacks . | . . . . . . . . . . . Damage Inflicted 8047 | . 76 . 970 1112 601 2448 2338 . 186 316 Guns 2570 | . 76 . 755 72 601 560 190 . . 316 Cannons 3011 | . . . . . . 751 2074 . 186 . Explosions 2423 | . . . 211 1026 . 1137 49 . . . Melee . | . . . . . . . . . . . Ramming 43 | . . . 4 14 . . 25 . . . Kinetic 2315 | . . . 226 72 601 1311 105 . . . Thermal 3253 | . 12 . 580 . . . 2159 . 186 316 Explosive 2106 | . . . 43 1026 . 1019 18 . . . Electromagnetic 330 | . 64 . 117 . . 118 31 . . . Impact . | . . . . . . . . . . . Slashing . | . . . . . . . . . . . Piercing . | . . . . . . . . . . . Highest Corruption 4 | . . . . 2 . 4 4 . . . Average Corruption 3 | . . . . 2 . 3 4 . . . Corruption Purged . | . . . . . . . . . . . Corruption Blocked . | . . . . . . . . . . . Effects 38 | . . . . 2 . 19 17 . . . Message Errors 12 | . . . . . . 7 5 . . . Matter Fused 7 | . . . . . . 4 3 . . . Heat Flow Errors 4 | . . . . . . 2 2 . . . Energy Discharges 3 | . . . . . . 2 1 . . . Parts Fused 1 | . . . . . . 1 . . . . Data Loss (minor) 4 | . . . . 1 . 1 2 . . . Misfires 4 | . . . . 1 . . 3 . . . Alerts 2 | . . . . . . 1 1 . . . Weapon Failures 1 | . . . . . . 1 . . . . Overload Shots . | . . . . . . . . . . . Overflow Damage 64 | . . . 10 15 . 25 14 . . . Projectiles 10 | . . . . . . . 10 . . . Explosions 50 | . . . 10 15 . 25 . . . . Melee 4 | . . . . . . . 4 . . . Knockbacks 5 | . . . . . . 5 . . . . Impact . | . . . . . . . . . . . Kinetic 5 | . . . . . . 5 . . . . Secondary . | . . . . . . . . . . . Self-Inflicted Damage 420 | . . . 10 178 . 211 21 . . . Shots 14 | . . . 1 5 . 7 1 . . . Rammed 11 | . . . 4 2 . . 5 . . . Targets Rammed 12 | . . . 4 2 . . 6 . . . Kicked . | . . . . . . . . . . . Crushed 1 | . . . . . . . 1 . . . Highest Temperature 324 | . 168 . 36 . 1 80 324 . . . Average Temperature 58 | . 89 . 19 . 1 20 64 . . . Received Heat Transfer 1227 | . 24 . 213 . 108 387 495 . . . Siege Activations . | . . . . . . . . . . . Martial Activations . | . . . . . . . . . . . Shielding Activations . | . . . . . . . . . . . Robots Disrupted . | . . . . . . . . . . . Combat Hostiles . | . . . . . . . . . . . Robots Corrupted 1 | . . . . . . . 1 . . . Combat Hostiles 1 | . . . . . . . 1 . . . Parts Fried 2 | . . . . . . 1 1 . . . Impact Corruptions 1 | . . . . . . . 1 . . . Robots Melted 1 | . . . . . . . 1 . . . Combat Hostiles . | . . . . . . . . . . . Parts Melted 7 | . . . 3 . . . 3 . . 1 Heat Transferred 6096 | . 37 . 1619 . . . 3441 . 296 703 Parts Sabotaged . | . . . . . . . . . . . Parts Stolen . | . . . . . . . . . . . Parts Stripped . | . . . . . . . . . . . Power Chain Reactions 1 | . . . 1 . . . . . . . Alert | -11 -10 -10 -9 -9 -8 -8 -8 -7 -7 -6 ------- Run | Yrd Mat Min Mat Min Mat Gar Sto Fac DSF Fac Maximum Alert Level 3 | . . . . . . 3 3 1 . . Low Security (%) 57 | 100 100 100 100 100 100 17 . 67 100 100 Level 1 3 | . . . . . . 8 . 32 . . Level 2 15 | . . . . . . 11 68 . . . Level 3 23 | . . . . . . 63 31 . . . Level 4 . | . . . . . . . . . . . Level 5 . | . . . . . . . . . . . High Security . | . . . . . . . . . . . Max Security . | . . . . . . . . . . . Peak Influence 1041 | . 40 . 78 39 135 1041 825 212 181 108 Initial 507 | . . . . 13 . 70 507 212 106 94 Average 327 | . 14 . 35 3 44 676 619 185 131 82 Influence Increases 2567 | . 40 . 328 74 239 1081 616 . 95 94 Destroy 0b10 Robot/C 1380 | . 40 . 200 . 160 560 300 . 40 80 Destroy 0b10 Robot/NC 105 | . . . 45 . 10 . 50 . . . Destroy Leader 264 | . . . 50 . 54 20 120 . 10 10 Successful Hack 26 | . . . 4 . 14 . 4 . . 4 Disable Machine 150 | . . . 15 . . 60 75 . . . Anti-Garrison Action 200 | . . . . . . 200 . . . . Destroy Structure 247 | . . . 14 59 1 136 37 . . . Partial Spotted 15 | . . . . . . . 15 . . . Lose Combat Pursuer 180 | . . . . 15 . 105 15 . 45 . Influence Decreases 2459 | . 40 . 294 108 131 148 1188 317 66 167 Entered New Map 983 | . . . . 21 . 38 534 257 46 87 Time Decay 926 | . 40 . 284 47 121 . 334 60 . 40 Lost Part 250 | . . . 10 40 10 110 20 . 20 40 Purge Threat 300 | . . . . . . . 300 . . . Squads Dispatched 5 | . . . . . 2 . 2 . 1 . Investigation 1 | . . . . . 1 . . . . . Extermination . | . . . . . . . . . . . Reinforcement 3 | . . . . . . . 2 . 1 . Assault . | . . . . . . . . . . . Garrison 1 | . . . . . 1 . . . . . Intercept . | . . . . . . . . . . . Searches Triggered . | . . . . . . . . . . . Construction Impeded . | . . . . . . . . . . . Haulers Reinforced . | . . . . . . . . . . . Active Scanning Responses . | . . . . . . . . . . . Cargo Convoy Interrupts . | . . . . . . . . . . . Stealth | -11 -10 -10 -9 -9 -8 -8 -8 -7 -7 -6 --------- Run | Yrd Mat Min Mat Min Mat Gar Sto Fac DSF Fac Distress Signals 3 | . . . . . 2 . . . . 1 Communications Jammed . | . . . . . . . . . . . Distress Signals . | . . . . . . . . . . . Times Spotted 108 | . 2 . 12 22 13 30 17 . 7 5 Peak Tracking Total 14 | . 2 . 4 14 6 7 3 . 2 5 Tactical Retreats 11 | . . . . 2 . 5 1 . 3 . Traps | -11 -10 -10 -9 -9 -8 -8 -8 -7 -7 -6 ------- Run | Yrd Mat Min Mat Min Mat Gar Sto Fac DSF Fac Traps Triggered 3 | . . . . . . 3 . . . . Indirectly 1 | . . . . . . 1 . . . . Trap Hack Attempts . | . . . . . . . . . . . Triggered . | . . . . . . . . . . . Disarmed . | . . . . . . . . . . . Reprogrammed . | . . . . . . . . . . . Reused . | . . . . . . . . . . . Traps Extracted . | . . . . . . . . . . . Installed . | . . . . . . . . . . . Triggered . | . . . . . . . . . . . Machines | -11 -10 -10 -9 -9 -8 -8 -8 -7 -7 -6 ---------- Run | Yrd Mat Min Mat Min Mat Gar Sto Fac DSF Fac Machines Disabled 13 | . . . 1 . . 7 5 . . . Max in Single Turn 3 | . . . 1 . . 3 2 . . . Garrison Relay 3 | . . . . . . 3 . . . . Machines Repaired . | . . . . . . . . . . . Machines Dismantled . | . . . . . . . . . . . Machines Sabotaged . | . . . . . . . . . . . Overloaded Fab Kills . | . . . . . . . . . . . Hacking | -11 -10 -10 -9 -9 -8 -8 -8 -7 -7 -6 --------- Run | Yrd Mat Min Mat Min Mat Gar Sto Fac DSF Fac Machines Accessed 16 | . . 1 3 . 2 2 5 1 . 2 Terminals 15 | . . 1 3 . 1 2 5 1 . 2 Fabricators . | . . . . . . . . . . . Repair Stations . | . . . . . . . . . . . Recycling Units . | . . . . . . . . . . . Scanalyzers . | . . . . . . . . . . . Garrison Access 1 | . . . . . 1 . . . . . Total Hacks 36 | . . 2 8 . 4 6 11 2 . 3 Successful 18 | . . 1 3 . 4 . 8 1 . 1 Failed 18 | . . 1 5 . . 6 3 1 . 2 Catastrophic 2 | . . . 1 . . . 1 . . . Database Lockouts . | . . . . . . . . . . . Manual 6 | . . . 2 . 2 . 2 . . . Terminals 35 | . . 2 8 . 3 6 11 2 . 3 Fabricators . | . . . . . . . . . . . Repair Stations . | . . . . . . . . . . . Recycling Units . | . . . . . . . . . . . Scanalyzers . | . . . . . . . . . . . Garrison Access 1 | . . . . . 1 . . . . . Terminal Hacks 14 | . . 1 3 . 1 . 7 1 . 1 Record 1 | . . 1 . . . . . . . . Robot Analysis 1 | . . . 1 . . . . . . . Open Door 2 | . . . . . . . 2 . . . Open DSF 2 | . . . . . . . . 1 . 1 Terminal Index 1 | . . . . . . . 1 . . . Alert Level 2 | . . . . . . . 2 . . . Unreport Threat 2 | . . . . . . . 2 . . . Locate Traps 2 | . . . 1 . 1 . . . . . Zone Layout 1 | . . . 1 . . . . . . . Fabricator Hacks . | . . . . . . . . . . . Repair Station Hacks . | . . . . . . . . . . . Recycling Unit Hacks . | . . . . . . . . . . . Scanalyzer . | . . . . . . . . . . . Garrison Access Hacks 1 | . . . . . 1 . . . . . Unlock Access 1 | . . . . . 1 . . . . . Unauthorized Hacks 3 | . . . . . 2 . 1 . . . Terminals 3 | . . . . . 2 . 1 . . . Assimilate 1 | . . . . . 1 . . . . . Botnet 2 | . . . . . 1 . 1 . . . Fabricators . | . . . . . . . . . . . Repair Stations . | . . . . . . . . . . . Recycling Units . | . . . . . . . . . . . Scanalyzers . | . . . . . . . . . . . Garrison Access . | . . . . . . . . . . . Data Cores Recovered . | . . . . . . . . . . . Used . | . . . . . . . . . . . Hacking Detections 13 | . . 1 3 . 2 2 3 1 . 1 Full Trace Events 3 | . . . 1 . 1 1 . . . . Feedback Events . | . . . . . . . . . . . Feedback Blocked . | . . . . . . . . . . . Robot Schematics Acquired . | . . . . . . . . . . . Robots Built . | . . . . . . . . . . . Authchips . | . . . . . . . . . . . Time . | . . . . . . . . . . . Total Robot Build Rating . | . . . . . . . . . . . Part Schematics Acquired . | . . . . . . . . . . . Parts Built . | . . . . . . . . . . . Authchips . | . . . . . . . . . . . Time . | . . . . . . . . . . . Total Part Build Rating . | . . . . . . . . . . . Parts Repaired . | . . . . . . . . . . . Time . | . . . . . . . . . . . Parts Recycled . | . . . . . . . . . . . Recycled Matter . | . . . . . . . . . . . Retrieved Matter . | . . . . . . . . . . . Retrieved Components . | . . . . . . . . . . . Parts Scanalyzed . | . . . . . . . . . . . Part Schematics Acquired . | . . . . . . . . . . . Parts Damaged . | . . . . . . . . . . . Bothacking | -11 -10 -10 -9 -9 -8 -8 -8 -7 -7 -6 ------------ Run | Yrd Mat Min Mat Min Mat Gar Sto Fac DSF Fac Used RIF Installer . | . . . . . . . . . . . Robots Hacked . | . . . . . . . . . . . Non-combat . | . . . . . . . . . . . Combat . | . . . . . . . . . . . Robot Hacks Applied . | . . . . . . . . . . . Relay Couplers Released 14 | . . . . . . 14 . . . . Machine Destruction 11 | . . . . . . 11 . . . . Programmers 3 | . . . . . . 3 . . . . Fabnet Peak Effective % . | . . . . . . . . . . . Robots Rewired . | . . . . . . . . . . . Allies Hacked . | . . . . . . . . . . . Hacks Repelled . | . . . . . . . . . . . Allies | -11 -10 -10 -9 -9 -8 -8 -8 -7 -7 -6 -------- Run | Yrd Mat Min Mat Min Mat Gar Sto Fac DSF Fac Total Allies . | . . . . . . . . . . . Largest Group . | . . . . . . . . . . . Highest-Rated Group . | . . . . . . . . . . . Highest-Rated Ally . | . . . . . . . . . . . Initial Warlord ECA Mod 8 | . . . . . . . 3 2 2 1 Total Orders . | . . . . . . . . . . . Ally Attacks . | . . . . . . . . . . . Total Damage . | . . . . . . . . . . . Kills . | . . . . . . . . . . . Allies Corrupted . | . . . . . . . . . . . Allies Melted . | . . . . . . . . . . . Intel | -11 -10 -10 -9 -9 -8 -8 -8 -7 -7 -6 ------- Run | Yrd Mat Min Mat Min Mat Gar Sto Fac DSF Fac Active Infowar (turns) 812 | . . . 180 . . . 215 123 198 96 Optics 97 | . . . 97 . . . . . . . Sensors 617 | . . . . . . . 215 123 198 81 Terrain 83 | . . . 83 . . . . . . . Structural 81 | . . . . . . . . . . 81 Robot Analysis Total 1 | . . . 1 . . . . . . . Derelict Logs Recovered 3 | . . 1 . 2 . . . . . . Drone Launches . | . . . . . . . . . . . Drone Recoveries . | . . . . . . . . . . . Exploration | -11 -10 -10 -9 -9 -8 -8 -8 -7 -7 -6 ------------- Run | Yrd Mat Min Mat Min Mat Gar Sto Fac DSF Fac Turns Passed 4127 | 85 113 163 691 410 334 1164 750 123 198 96 Spaces Moved 1967 | 48 50 102 297 222 135 546 270 72 106 119 Core 2 | 2 . . . . . . . . . . Treads 1848 | 46 50 102 297 222 135 546 270 72 106 2 Legs . | . . . . . . . . . . . Wheels . | . . . . . . . . . . . Hover . | . . . . . . . . . . . Flight 117 | . . . . . . . . . . 117 Fastest Speed 26 | 50 160 160 160 160 160 160 160 160 160 26 Average Speed 154 | 155 160 160 160 160 160 165 164 160 160 28 Slowest Speed 240 | 160 160 160 160 160 160 240 240 160 160 160 Overloaded Moves . | . . . . . . . . . . . Propulsion Burnouts . | . . . . . . . . . . . Robots Hopped . | . . . . . . . . . . . Potential Cave-ins 2 | . . . . . . 2 . . . . Cave-ins Triggered . | . . . . . . . . . . . Exploration Rate (%) 32 | 5 10 49 33 58 17 69 45 2 67 6 Regions Visited 10 Branch Regions 3 Pre-discovered Areas 2 | . . 1 . 1 . . . . . . Known Exits Taken 3 | . . . . . 1 . 1 1 . . Unknown Exits Taken 5 | 1 1 1 1 1 . . . . . . Scrap Searched 1 | . . . . 1 . . . . . . Spaces Dug 35 | . . . . . . 35 . . . . Terrain Destroyed 283 | . . . 17 128 . 102 36 . . . Melee . | . . . . . . . . . . . Projectile 19 | . . . . . . . 19 . . . AOE 264 | . . . 17 128 . 102 17 . . . Terrain Rammed . | . . . . . . . . . . . Walls Destroyed . | . . . . . . . . . . . Machines Disabled . | . . . . . . . . . . . Actions | -11 -10 -10 -9 -9 -8 -8 -8 -7 -7 -6 --------- Run | Yrd Mat Min Mat Min Mat Gar Sto Fac DSF Fac Total 2590 | 56 72 102 424 251 200 676 444 80 120 165 Wait 86 | . 8 1 13 . 5 17 19 9 . 14 Move 1958 | 47 49 101 296 221 135 545 269 71 105 119 Hop . | . . . . . . . . . . . Pick Up 63 | 3 6 . 20 4 6 9 12 . 3 . Fast Attach 38 | 6 2 . 8 . 6 4 11 . . 1 Attach 36 | . . . 4 4 3 9 3 . 1 12 Detach 16 | . 1 . 2 . 4 1 6 . . 2 Swap 21 | . 1 . . 6 3 6 5 . . . Drop 68 | . . . 22 . 10 3 23 . 3 7 Fire 290 | . 5 . 55 14 28 80 90 . 8 10 Melee . | . . . . . . . . . . . Ram . | . . . . . . . . . . . Kick . | . . . . . . . . . . . Crush 12 | . . . 4 2 . . 6 . . . Escape Stasis 2 | . . . . . . 2 . . . . Rewire . | . . . . . . . . . . . Trap . | . . . . . . . . . . . Miscellaneous . | . . . . . . . . . . . Route ------- -11/Scrapyard -10/Materials -10/Mines -9/Materials -9/Mines -8/Materials (discovered 3 exits: Fac x2 / Gar) -8/Garrison (discovered 2 exits: *Sto x2) -8/Storage -7/Factory -7/DSF -6/Factory (discovered 1 exit: [*Ext]) History --------- Turn | Location | Event 18 | -11/Scrapyard | Discovered new exit (range 16) 86 | -11/Scrapyard | Entered Materials 156 | -10/Materials | Discovered new exit (range 14) 199 | -10/Materials | Entered Mines 314 | -10/Mines | Build established: Mutant 338 | -10/Mines | Discovered new exit (range 16) 349 | -10/Mines | Learned location of Zion (-6) 362 | -10/Mines | Entered Materials 362 | -9/Materials | Evolved 2 slots: Propulsion x1, Utility x1 988 | -9/Materials | Discovered new exit (range 16) 1053 | -9/Materials | Entered Mines 1056 | -9/Mines | YI-UF0 nonchalantly dropped a Grenade Launcher on the ground 1135 | -9/Mines | Assembled infested the area 1136 | -9/Mines | Discovered new exit (range 15) 1140 | -9/Mines | Assisted by a Guerilla fighting off Assembled 1282 | -9/Mines | Lost 4 parts (1p2n1w) 1293 | -9/Mines | Destroyed 16 combat bots 1364 | -9/Mines | Learned 4 Materials zone layouts 1463 | -9/Mines | Entered Materials 1463 | -8/Materials | Evolved 2 slots: Utility x2 1464 | -8/Materials | Identified exit to Factory 1540 | -8/Materials | Build established: Scavenger-Mutant 1676 | -8/Materials | Garrison activated, responded to threat 1797 | -8/Materials | Identified exit to Garrison 1797 | -8/Materials | Entered Garrison 1885 | -8/Garrison | Triggered checkpoint 2042 | -8/Garrison | Garrison Relay disabled 2205 | -8/Garrison | Triggered checkpoint 2224 | -8/Garrison | Triggered checkpoint 2254 | -8/Garrison | Destroyed 10 combat bots 2321 | -8/Garrison | Triggered checkpoint 2380 | -8/Garrison | Lost 3 parts (2n1u) 2426 | -8/Garrison | Lost 3 parts (1n2w) 2490 | -8/Garrison | Garrison Relay disabled 2532 | -8/Garrison | Discovered new exit (range 12) 2764 | -8/Garrison | Triggered checkpoint 2775 | -8/Garrison | Core integrity fell below 50% 2843 | -8/Garrison | Triggered checkpoint 2864 | -8/Garrison | Garrison Relay disabled 2912 | -8/Garrison | Triggered checkpoint 2932 | -8/Garrison | Discovered new exit (range 13) 2961 | -8/Garrison | Entered Storage 3703 | -8/Storage | Discovered exit to Factory (range 6) 3711 | -8/Storage | Entered Factory 3711 | -7/Factory | Evolved 2 slots: Propulsion x2 3832 | -7/Factory | Identified exit to DSF 3834 | -7/Factory | Entered DSF 3861 | -7/DSF | Discovered new exit (range 14) 3870 | -7/DSF | Additional patrols routed to DSF 4032 | -7/DSF | Entered Factory 4032 | -6/Factory | Evolved 2 slots: Power x1, Utility x1 4084 | -6/Factory | Discovered new exit (range 6) 4128 | -6/Factory | Self-destructed Last Messages --------------- 04104_ Destroyed VTOL Module. 04104_ Hacking Suite destroyed. 04105_ S-27 Virus heat damages VTOL Module, Autogun, Lgt. Nuclear Core. 04107_ S-27 Virus destroyed. 04107_ Switching to secondary target: S-27 Virus. 04113_ Imp. Sensor Array destroyed. 04114_ K-01 Serf destroyed. 04115_ K-01 Serf collects debris. 04116_ VTOL Module melted. 04116_ S-27 Virus destroyed. 04117_ Lgt. Deuterium Engine destroyed. 04117_ K-01 Serf collects debris. 04121_ Mic. Nuclear Core destroyed. 04122_ K-01 Serf collects debris. 04122_ S-27 Virus destroyed. 04124_ K-01 Serf collects debris. 04125_ S-27 Virus destroyed. 04125_ K-01 Serf collects debris. Map ----- +----------------------------------------------------+ | ?????????????????????????????????????????????????? | | ?????????????????????????????????????????????????? | | ?????????????????????????????????????????????????? | | ?????????????????????????????????????????????????? | | ?????????????????????????????????????????????????? | | ?????????????????????????????????????????????????? | | ?????????????????????????????????????????????????? | | ?#########???? # ????????????????????????????????? | | ?#########???? # ????????????????????????????????? | | ###"""""#### # ??????????????????????????????? | | ###""T""#### ####??????????????????????????????? | | # ??????????????????????????????? | | # ??????????????????????????????? | | # ??????????????????????????????? | | """ """ # ??????????????????????????????? | | """ """ # ??????????????????????????????? | | """ """ # ??????????????????????????????? | | # # ?? ??????????????? | | # """ """ #####+######+##+##??????????????? | | + """ """ w ##### ##??????????????? | | # """ """ ##??????????????? | | # k! ##??????????????? | | ## """ """ = = ##??????????????? | | ## """ """ %[ ##??????????????? | | ## """ """ k %%* #### ???????????? | | ## ^ R @% # ???????????? | | ## """ """ ###### # ???????????? | | ## """ """ #######+####### ???? ##???????????? | | ## """ """ ## + ??????????????????? | | ## ## """""" ##??????????????????? | | """ """ ## """""" ##??????????????????? | | """ """ ## """""" ##??????????????????? | | """ """ ## """""" ##??????????????????? | | ## ##??????????????????? | | ## ## """""" ##??????????????????? | | ######### ## """""" ##??????????????????? | | ######### ## """""" ##??????????????????? | | ##?????## ## """""" # ??????????????????? | | ##?????## ## # ??????????????????? | | ##?###### + # ??????????????????? | | ##?########+################# ??????????????????? | | ##### ########## ??????????????????? | | ##### """"""" ##???????????????????????????? | | + + """"""" ##???????????????????????????? | | ###### """"""" ##???????????????????????????? | | ###### """"""" ##???????????????????????????? | | ????## ##???????????????????????????? | | ????##################???????????????????????????? | | ???? ???????????????????????????? | | ?????????????????????????????????????????????????? | +----------------------------------------------------+ Best States ------------- Heat Dissipation 73 Energy Generation 24 Energy Capacity 280 Matter Stores 450 Matter Capacity 450 Sight Range 18 Robot Scan Range 15 Terrain Scan Range 14 Terrain Scan Density 10 Armor Coverage 225 Evasion (%) 64 Launcher Accuracy 20 Core Analysis 6 Recoil Reduction 4 Offensive Hacking 10 Item Schematics ----------------- None Robot Schematics ------------------ None Fabricated ------------ Nothing Repaired ---------- Nothing Alien Tech Used ----------------- None Achievements -------------- Exterminator Maybe Next Time I'll Detach My Launcher Challenges ------------ None Game ------ Seed TransdimensionalWaveTorch Manual? 0 Play Time 01:34:58 Cumulative 55.4 hours Start 2025.06.22 @ 14:08:15 End 2025.10.12 @ 16:52:35 Sessions 1 Manual Loads 0 Difficulty Rogue Special Mode None Game No. 37 Rogue 37 Adventurer 0 Explorer 0 Win Type - Total 0 Types 0/0/0/0/0/0/0/0/0/0 Lore% 22 Gallery% 30 Achievement% 35 Wizard Run 0 Options --------- Layout 1 ASCII 0 Keyboard 0 Movement Numpad Keybinds 0 Fullscreen 1 Font 24/Smallcaps Map View 50x35 Zoom Use 0% Tactical HUD 1 Map Filters NONE Filters NONE Steam 1 RUN: 9ad0e70d-fbbd-42b4-9786-567c002f8a19